fUSD/lending_fUSD_20241216
["ID","MTS","AMOUNT","RATE_DAILY","PERIOD"]
[345609490,1734379843167,-1113.23,0.00024999,4]
[345609491,1734379843176,-1113.23,0.00024999,4]
[345609492,1734379843185,-1113.23,0.00024999,4]
[345609493,1734379843194,-1113.23,0.00024999,4]
[345609494,1734379843203,-1113.23,0.00024999,4]
[345609495,1734379843212,-1113.23,0.00024999,4]
[345609496,1734379843221,-1113.23,0.00024999,4]
[345609497,1734379843230,-1113.23,0.00024999,4]
[345609498,1734379843239,-1113.23,0.00024999,4]
[345609499,1734379843248,-1113.36,0.00024999,4]
[345609500,1734379843257,-500.0,0.00024999,4]
[345609501,1734379843269,-500.0,0.00024999,4]
[345609502,1734379843278,-500.0,0.00024999,4]
[345609503,1734379843287,-500.0,0.00024999,4]
[345609504,1734379843296,-500.0,0.00024999,4]
[345609505,1734379843306,-500.0,0.00024999,4]
[345609506,1734379843315,-500.0,0.00024999,4]
[345609507,1734379843324,-500.0,0.00024999,4]
[345609508,1734379843334,-500.0,0.00024999,4]
[345609509,1734379843344,-500.0,0.00024999,4]
[345609510,1734379843353,-500.0,0.00024999,4]
[345609511,1734379843363,-500.0,0.00024999,4]
[345609512,1734379843373,-243.55,0.00024999,4]
[345609513,1734379843383,-2100.64,0.00024999,4]
[345609514,1734379843392,-2100.64,0.00024999,4]
[345609515,1734379843402,-2100.64,0.00024999,4]
[345609516,1734379843411,-2100.64,0.00024999,4]
[345609517,1734379843421,-2100.64,0.00024999,4]
[345609518,1734379843431,-2100.64,0.00024999,4]
[345609519,1734379843441,-2100.64,0.00024999,4]
[345609520,1734379843451,-2100.64,0.00024999,4]
[345609521,1734379843460,-2100.64,0.00024999,4]
[345609522,1734379843470,-2100.64,0.00024999,4]
[345609523,1734379843479,-2100.64,0.00024999,4]
[345609524,1734379843489,-2100.64,0.00024999,4]
[345609525,1734379843498,-2100.64,0.00024999,4]
[345609526,1734379843507,-2100.64,0.00024999,4]
[345609527,1734379843516,-2100.64,0.00024999,4]
[345609528,1734379843526,-2100.64,0.00024999,4]
[345609529,1734379843535,-2100.64,0.00024999,4]
[345609530,1734379843544,-2100.64,0.00024999,4]
[345609531,1734379843554,-2100.64,0.00024999,4]
[345609532,1734379843564,-2100.87,0.00024999,4]
[345609533,1734379843573,-5112.23,0.00024999,4]
[345609534,1734379843582,-5112.23,0.00024999,4]
[345609535,1734379843592,-5112.23,0.00024999,4]
[345609536,1734379843602,-5112.23,0.00024999,4]
[345609537,1734379843611,-5112.23,0.00024999,4]
[345609538,1734379843620,-5112.23,0.00024999,4]
[345609539,1734379843630,-5112.23,0.00024999,4]
[345609540,1734379843639,-5112.23,0.00024999,4]
[345609541,1734379843649,-5112.23,0.00024999,4]
[345609542,1734379843658,-5112.23,0.00024999,4]
[345609543,1734379843667,-5112.23,0.00024999,4]
[345609544,1734379843676,-5112.23,0.00024999,4]
[345609545,1734379843686,-5112.23,0.00024999,4]
[345609546,1734379843695,-5112.23,0.00024999,4]
[345609547,1734379843704,-999.0,0.00024999,2]
[345609548,1734379843713,-642.31,0.00024999,4]
[345609549,1734379843722,-642.31,0.00024999,4]
[345609550,1734379843732,-642.31,0.00024999,4]
[345609551,1734379843741,-642.31,0.00024999,4]
[345609552,1734379843750,-642.31,0.00024999,4]
[345609553,1734379843759,-642.31,0.00024999,4]
[345609554,1734379843768,-642.31,0.00024999,4]
[345609555,1734379843777,-1459.57,0.00024999,4]
[345609556,1734379843786,-642.31,0.00024999,4]
[345609557,1734379843795,-1459.57,0.00024999,4]
[345609558,1734379843804,-642.31,0.00024999,4]
[345609559,1734379843814,-642.31,0.00024999,4]
[345609560,1734379843823,-1459.57,0.00024999,4]
[345609561,1734379843832,-642.31,0.00024999,4]
[345609562,1734379843841,-1459.57,0.00024999,4]
[345609563,1734379843850,-642.31,0.00024999,4]
[345609564,1734379843859,-1459.57,0.00024999,4]
[345609565,1734379843868,-642.31,0.00024999,4]
[345609566,1734379843877,-1459.57,0.00024999,4]
[345609567,1734379843887,-1459.57,0.00024999,4]
[345609568,1734379843896,-642.31,0.00024999,4]
[345609569,1734379843905,-1459.57,0.00024999,4]
[345609570,1734379843915,-642.31,0.00024999,4]
[345609571,1734379843924,-1459.57,0.00024999,4]
[345609572,1734379843934,-642.31,0.00024999,4]
[345609573,1734379843944,-1459.57,0.00024999,4]
[345609574,1734379843953,-642.31,0.00024999,4]
[345609575,1734379843963,-1459.57,0.00024999,4]
[345609576,1734379843972,-642.31,0.00024999,4]
[345609577,1734379843981,-1459.57,0.00024999,4]
[345609578,1734379843991,-1459.57,0.00024999,4]
[345609579,1734379844000,-642.31,0.00024999,4]
[345609580,1734379844009,-1459.57,0.00024999,4]
[345609581,1734379844019,-642.31,0.00024999,4]
[345609582,1734379844028,-1459.57,0.00024999,4]
[345609583,1734379844038,-642.42,0.00024999,4]
[345609584,1734379844049,-1459.57,0.00024999,4]
[345609585,1734379844060,-1459.57,0.00024999,4]
[345609586,1734379844071,-1459.57,0.00024999,4]
[345609587,1734379844081,-1459.57,0.00024999,4]
[345609588,1734379844090,-1459.59,0.00024999,4]
[345609589,1734379844100,-160.45861042,0.00025,2]
[345609590,1734379844109,-30000.0,0.00025,2]
[345609591,1734379844119,-3111.8099318,0.00025,2]
[345609592,1734379844129,-69369.76329642,0.00025,2]
[345609593,1734379844138,-2771520.65711173,0.00025,4]
[345609594,1734379844148,-29895766.18603246,0.00025,2]
[345609595,1734379844196,-2128.5983062,0.00025,2]
[345609596,1734379844207,-1196.02888783,0.00025,2]
[345609597,1734379844220,-705.64957448,0.00025,2]
[345609598,1734379844231,-17183.079,0.00025,2]
[345609599,1734379844244,-451.32130201,0.00025,2]
[345609600,1734379844256,-380.41328387,0.00025,2]
[345609601,1734379844271,-621.66930908,0.00025,2]
[345609602,1734379844294,-500.0,0.00024998,4]
[345609603,1734379844304,-3056.17878863,0.00025,2]
[345609604,1734379844318,-610.24273279,0.00025,2]
[345609605,1734379844329,-1125.25657168,0.00025,2]
[345609606,1734379844340,-512.34937245,0.00025,2]
[345609607,1734379844390,-267.4347224,0.00024258,2]
[345609608,1734379844399,-335.03773582,0.00024892,4]
[345609609,1734379844429,-26.55327762,0.00024892,4]
[345609610,1734379844438,-622.11879631,0.00024999,4]
[345609611,1734379844447,-200.18703416,0.00025,2]
[345609612,1734379844459,-37586.3663711,0.00025,2]
[345609613,1734379844473,-554.43682525,0.00025,2]
[345609614,1734379844492,-1938.13101963,0.00025,2]
[345609615,1734379844580,-198.34201269,0.00024899,2]
[345609616,1734379844589,-404.3115321,0.00025,2]
[345609617,1734379844601,-5817.58490033,0.00025,2]
[345609618,1734379844612,-5242.06451952,0.00025,2]
[345609619,1734379844744,-355.10500808,0.00025,2]
[345609620,1734379844757,-617.52595417,0.00025,2]
[345609621,1734379844768,-8395.7999993,0.00025,2]
[345609622,1734379844779,-1062.29077887,0.00025,2]
[345609623,1734379844791,-2108.38845549,0.00025,2]
[345609624,1734379844803,-309.27556203,0.00025,2]
[345609625,1734379844813,-624.34018883,0.00025,2]
[345609626,1734379844828,-635.48456642,0.00025,2]
[345609627,1734379844857,-834.93,0.00025,2]
[345609628,1734379844868,-636.29126223,0.00025,2]
[345609629,1734379844879,-10188.81968425,0.00025,2]
[345609630,1734379844900,-612432.60726918,0.00025,2]
[345609631,1734379844911,-22996.160001,0.00025,2]
[345609632,1734379844923,-6992.16004979,0.00025,2]
[345609633,1734379845940,-267.4347224,0.00024349,2]
[345609634,1734379845949,-438.25364624,0.00025,2]
[345609635,1734379845961,-624.10342147,0.00025,2]
[345609636,1734379845972,-890.30004459,0.00025,2]
[345609637,1734379845994,-607.20141595,0.00025,2]
[345609638,1734379846052,-64339.75849878,0.00025,2]
[345609639,1734379846063,-500.6001,0.00025,2]
[345609640,1734379846111,-882.69432487,0.00025,2]
[345609641,1734379846222,-323.504,0.00025,2]
[345609642,1734379846234,-1940.1912778,0.00025,2]
[345609643,1734379846333,-620.15671518,0.00025,2]
[345610959,1734380131274,450.0,0.00013,2]
[345610960,1734380353565,206.78,0.00010137,2]
[345610962,1734380708137,8575.69,0.0001,2]
[345610963,1734380708161,10000.0,0.0001,2]
[345610964,1734380708183,10000.0,0.0001,2]
[345610965,1734380708205,10000.0,0.0001,2]
[345610966,1734380708226,10000.0,0.0001,2]
[345610967,1734380708254,10000.0,0.0001,2]
[345610968,1734380708288,10000.0,0.0001,2]
[345610969,1734380708311,10000.0,0.0001,2]
[345610970,1734380708338,10000.0,0.0001,2]
[345610971,1734380708398,10000.0,0.0001,2]
[345610972,1734380708422,10000.0,0.0001,2]
[345610973,1734380708447,10000.0,0.0001,2]
[345610974,1734380708472,6308.70568421,0.0001,2]
[345610983,1734380791123,-152.8927359,0.00016813,2]
[345610984,1734380881160,3691.29431579,0.00013,2]
[345610985,1734380881192,6000.0,0.00013,2]
[345610986,1734380881222,11464879.33892945,0.00013,2]
[345610987,1734380882615,94463.43077817,0.0001,2]
[345610989,1734380907747,373.68733741,7.888e-05,2]
[345610990,1734380914077,213.56966206,0.0001,2]
[345610991,1734380919582,815.85821061,0.00013,2]
[345610993,1734380920303,255.8896352,0.000107,2]
[345610994,1734380922800,300.0,0.00012,2]
[345611016,1734381032154,-300.0,0.00015699,2]
[345611017,1734381032164,-9730.091214,0.000157,2]
[345611018,1734381032176,-476.67512439,0.000157,2]
[345611019,1734381032215,-310.8934765,0.000157,2]
[345611020,1734381032273,-4978.4,0.000157,2]
[345611021,1734381032332,-279.69657276,0.000157,2]
[345611022,1734381032344,-1075.43,0.000157,2]
[345611023,1734381032358,-133.10837477,0.000157,2]
[345611024,1734381032367,-214.5110559,0.00016713,2]
[345611025,1734381032376,-53.8872641,0.00016813,2]
[345611026,1734381032385,-352.11441147,0.00017169,2]
[345611027,1734381035725,-67.88558853,0.00017169,2]
[345611028,1734381035735,-587.0,0.00018778,2]
[345611029,1734381035745,-166.83,0.00018787,2]
[345611030,1734381035756,-6676.46761736,0.000189,2]
[345611031,1734381035766,-150.0,0.00019578,2]
[345611032,1734381035776,-500.0,0.00019979,2]
[345611033,1734381035788,-500.0,0.00019979,2]
[345611034,1734381035798,-11674.62581706,0.0001998,2]
[345611035,1734381035809,-10629.9983052,0.0001998,2]
[345611037,1734381035984,-8009.13665927,0.0001998,2]
[345611039,1734381035995,-3266.0189999,0.0001998,2]
[345611043,1734381038097,-18584.9196,0.0001998,2]
[345611044,1734381038109,-1072.9,0.0001998,2]
[345611045,1734381038262,-4262.625768,0.0001998,2]
[345611046,1734381038859,-101180.9163618,0.0001998,2]
[345611047,1734381038868,-2131.21,0.0001998,2]
[345611048,1734381038878,-265.063,0.0002,2]
[345611049,1734381038887,-3950.0,0.0002,2]
[345611050,1734381038896,-1235.27387555,0.0002,2]
[345611051,1734381038905,-2050.16269069,0.0002,2]
[345611052,1734381038914,-811.23986249,0.0002,2]
[345611053,1734381038923,-823.0,0.00020537,2]
[345611054,1734381038932,-106169.99999996,0.00021,2]
[345611055,1734381038941,-600.000001,0.00021,2]
[345611056,1734381038950,-1196.3232528,0.00021,2]
[345611057,1734381038959,-1550.79,0.00021043,2]
[345611058,1734381038976,-200.0,0.00021164,2]
[345611060,1734381038988,-150.08,0.00021164,2]
[345611061,1734381039001,-223.67,0.00021504,2]
[345611062,1734381039011,-1123.93,0.00021542,2]
[345611063,1734381039020,-160.46083344,0.00021825,2]
[345611064,1734381039029,-738.22,0.00021841,2]
[345611066,1734381039039,-48591.18080004,0.0002189,2]
[345611068,1734381039048,-738.22,0.00022025,2]
[345611070,1734381039058,-160.46083344,0.00022167,2]
[345611071,1734381039067,-760.58,0.00022251,2]
[345611073,1734381039076,-1152.0,0.0002246,2]
[345611075,1734381039087,-160.46083344,0.00022508,2]
[345611076,1734381039096,-742.08,0.00022544,2]
[345611077,1734381039104,-160.46083344,0.0002285,2]
[345611078,1734381039114,-1500.0,0.0002288,2]
[345611079,1734381039123,-744.62,0.00022915,2]
[345611080,1734381039132,-161.72,0.00022988,2]
[345611081,1734381039141,-181.64,0.00022994,2]
[345611082,1734381039150,-200.0,0.00023,2]
[345611083,1734381039159,-150.94,0.00023032,30]
[345611084,1734381039168,-156.75,0.00023053,2]
[345611085,1734381039177,-156.75,0.00023064,2]
[345611086,1734381039186,-156.75,0.00023076,2]
[345611087,1734381039195,-156.75,0.00023087,2]
[345611088,1734381039204,-156.75,0.00023099,2]
[345611089,1734381039213,-156.75,0.00023111,2]
[345611090,1734381039222,-156.75,0.00023122,2]
[345611091,1734381039231,-156.75,0.00023134,2]
[345611092,1734381039240,-156.75,0.00023145,2]
[345611093,1734381039249,-156.75,0.00023157,2]
[345611094,1734381039258,-156.75,0.00023168,2]
[345611095,1734381039267,-160.46083344,0.00023192,2]
[345611096,1734381039276,-165.57,0.00023265,2]
[345611097,1734381039286,-701.29,0.00023287,2]
[345611098,1734381039296,-250.0,0.00023287,2]
[345611099,1734381039309,-1550.79,0.00023307,2]
[345611100,1734381039318,-250.0,0.00023355,2]
[345611101,1734381039328,-748.41,0.00023383,2]
[345611102,1734381039337,-23900.0,0.00023412,2]
[345611103,1734381039346,-285.21,0.00023462,2]
[345611104,1734381039355,-197.11,0.00023473,2]
[345611105,1734381039365,-206.78,0.0002349,2]
[345611106,1734381039374,-250.0,0.00023497,2]
[345611107,1734381039384,-160.46083344,0.00023533,2]
[345611108,1734381039393,-250.0,0.00023574,2]
[345611109,1734381039402,-1653.0,0.000236,2]
[345611110,1734381039412,-1000.0,0.00023646,2]
[345611111,1734381039420,-200.0,0.0002368,2]
[345611112,1734381039430,-507.632,0.0002375,2]
[345611113,1734381039439,-165.35,0.00023838,2]
[345611114,1734381039448,-169.02,0.00023865,2]
[345611115,1734381039458,-361.53592492,0.00023874,2]
[345611116,1734381039468,-160.46083344,0.00023875,2]
[345611117,1734381039477,-750.71,0.00023974,2]
[345611118,1734381039487,-22062.7976,0.00023974,2]
[345611119,1734381039496,-760.8448,0.00023974,2]
[345611120,1734381039505,-4421.2967,0.00023974,2]
[345611121,1734381039514,-5644.7122871,0.00024,2]
[345611122,1734381039523,-500.0,0.00024074,2]
[345611123,1734381039535,-802.7695,0.00024074,2]
[345611124,1734381039546,-167.648,0.00024107,6]
[345611125,1734381039555,-1489.065,0.00024107,6]
[345611126,1734381039564,-378.5,0.00024174,2]
[345611127,1734381039573,-150.99,0.00024174,2]
[345611128,1734381039583,-1507.55,0.00024174,2]
[345611129,1734381039593,-1861.46,0.00024174,2]
[345611130,1734381039603,-299.99,0.00024174,7]
[345611131,1734381039615,-999.99,0.00024174,2]
[345611132,1734381039627,-563.52,0.00024174,2]
[345611133,1734381039637,-153.0,0.00024181,2]
[345611134,1734381039646,-153.0,0.00024181,2]
[345611135,1734381039661,-153.0,0.00024181,2]
[345611136,1734381039671,-153.0,0.00024181,2]
[345611137,1734381039680,-500.0,0.000242,2]
[345611138,1734381039689,-160.46083344,0.00024217,2]
[345611139,1734381039698,-197.11,0.00024342,2]
[345611140,1734381039710,-160.46083344,0.00024558,2]
[345611141,1734381039723,-436.37,0.00024564,2]
[345611142,1734381039732,-1450.07,0.00024564,2]
[345611143,1734381039749,-436.37,0.00024564,2]
[345611144,1734381039772,-656.46,0.00024564,2]
[345611145,1734381039781,-1613.0,0.00024564,2]
[345611146,1734381039790,-500.0,0.00024657,4]
[345611147,1734381039799,-500.0,0.00024657,4]
[345611148,1734381039808,-500.0,0.00024657,4]
[345611149,1734381039817,-500.0,0.00024657,4]
[345611150,1734381039827,-161.72,0.00024689,2]
[345611151,1734381039837,-500.0,0.00024748,2]
[345611152,1734381039846,-178.0,0.0002475,2]
[345611153,1734381039855,-2598.38315,0.0002475,2]
[345611154,1734381039864,-500.0,0.00024799,4]
[345611155,1734381039873,-500.0,0.00024799,4]
[345611156,1734381039882,-2500.0,0.000248,2]
[345611157,1734381039891,-41032.00000003,0.000248,2]
[345611158,1734381039901,-500.0,0.00024808,4]
[345611159,1734381039910,-3133.68206017,0.00024826,10]
[345611160,1734381039919,-200.0,0.00024828,10]
[345611161,1734381039927,-12303.74137215,0.00024835,10]
[345611162,1734381039937,-12303.74137215,0.00024838,10]
[345611163,1734381039947,-200.0,0.00024846,10]
[345611164,1734381039956,-12303.74137215,0.00024848,10]
[345611165,1734381039966,-12303.74137215,0.0002485,10]
[345611166,1734381039976,-3133.68206017,0.00024855,10]
[345611167,1734381039985,-3133.68206017,0.00024857,10]
[345611168,1734381039995,-164.94,0.00024857,2]
[345611169,1734381040004,-3133.68206017,0.00024861,10]
[345611170,1734381040014,-12303.74137215,0.00024863,10]
[345611171,1734381040023,-3133.68206017,0.00024864,10]
[345611172,1734381040037,-3133.68206017,0.00024864,10]
[345611173,1734381040048,-897.62468523,0.00024864,10]
[345611174,1734381040058,-897.62468523,0.00024867,10]
[345611175,1734381040067,-200.0,0.00024868,10]
[345611176,1734381040077,-897.62468523,0.00024869,10]
[345611177,1734381040087,-200.0,0.00024871,10]
[345611178,1734381040096,-12303.74137215,0.00024873,10]
[345611179,1734381040105,-487.26,0.00024877,2]
[345611180,1734381040115,-11235.14049735,0.00024878,21]
[345611181,1734381040124,-897.62468523,0.00024879,10]
[345611182,1734381040133,-200.0,0.00024879,10]
[345611183,1734381040143,-2676.48641393,0.00024879,2]
[345611184,1734381040152,-24395.5868,0.0002488,2]
[345611185,1734381040161,-897.62468523,0.00024885,10]
[345611186,1734381040171,-200.0,0.00024886,10]
[345611187,1734381040180,-153.41,0.00024889,2]
[345611188,1734381040189,-10809.67491081,0.0002489,30]
[345611189,1734381040199,-200.0,0.00024893,10]
[345611190,1734381040209,-33493.56990242,0.00024894,30]
[345611191,1734381040218,-897.62468523,0.00024896,10]
[345611192,1734381040227,-200.0,0.00024897,10]
[345611193,1734381040237,-220.0,0.00024899,2]
[345611194,1734381040246,-5000.0,0.00024899,2]
[345611195,1734381040255,-29984.61438313,0.00024899,2]
[345611196,1734381040265,-735.74,0.00024899,4]
[345611197,1734381040274,-556.62,0.00024899,4]
[345611198,1734381040284,-1750.54,0.00024899,4]
[345611199,1734381040309,-4260.19,0.00024899,4]
[345611200,1734381040318,-1216.3,0.00024899,4]
[345611201,1734381040327,-500.0,0.00024899,4]
[345611202,1734381040337,-500.0,0.00024899,4]
[345611203,1734381040346,-400.0,0.00024899,4]
[345611204,1734381040356,-77624.2842,0.000249,2]
[345611205,1734381040366,-13059.716,0.000249,2]
[345611206,1734381040375,-320.21,0.000249,31]
[345611207,1734381040384,-320.21,0.000249,31]
[345611208,1734381040393,-320.21,0.000249,31]
[345611209,1734381040403,-320.21,0.000249,31]
[345611210,1734381040412,-320.21,0.000249,31]
[345611211,1734381040421,-320.21,0.000249,31]
[345611212,1734381040431,-320.21,0.000249,31]
[345611213,1734381040441,-320.21,0.000249,31]
[345611214,1734381040450,-320.21,0.000249,31]
[345611215,1734381040459,-320.21,0.000249,31]
[345611216,1734381040469,-1998.91496,0.000249,2]
[345611217,1734381040478,-320.21,0.000249,31]
[345611218,1734381040488,-320.21,0.000249,31]
[345611219,1734381040498,-320.21,0.000249,31]
[345611220,1734381040507,-320.21,0.000249,31]
[345611221,1734381040517,-320.21,0.000249,31]
[345611222,1734381040526,-320.21,0.000249,31]
[345611223,1734381040536,-2130.17187279,0.000249,10]
[345611224,1734381040548,-361.53592492,0.000249,2]
[345611225,1734381040558,-160.46083344,0.000249,2]
[345611226,1734381040568,-200.0,0.00024961,7]
[345611227,1734381040577,-1447.52370318,0.00024972,2]
[345611228,1734381040587,-500.0,0.00024973,2]
[345611229,1734381040596,-162.23550458,0.00024973,2]
[345611230,1734381040606,-6324.15,0.0002498,2]
[345611232,1734381040618,-153.41,0.00024988,2]
[345611234,1734381040628,-153.41,0.00024989,2]
[345611237,1734381040638,-153.41,0.00024989,2]
[345611240,1734381040648,-153.41,0.0002499,2]
[345611243,1734381040658,-153.41,0.0002499,2]
[345611245,1734381040668,-153.41,0.0002499,2]
[345611246,1734381040677,-153.41,0.0002499,2]
[345611249,1734381040687,-153.41,0.0002499,2]
[345611250,1734381040698,-153.41,0.0002499,2]
[345611253,1734381040708,-153.41,0.0002499,2]
[345611255,1734381040718,-153.41,0.0002499,2]
[345611257,1734381040737,-153.41,0.0002499,2]
[345611260,1734381040748,-153.41,0.0002499,2]
[345611261,1734381040758,-153.41,0.0002499,2]
[345611263,1734381040768,-153.41,0.0002499,2]
[345611265,1734381040778,-153.41,0.0002499,2]
[345611268,1734381040789,-153.41,0.0002499,2]
[345611270,1734381040799,-153.41,0.0002499,2]
[345611271,1734381040810,-153.41,0.0002499,2]
[345611272,1734381040820,-153.41,0.0002499,2]
[345611273,1734381040829,-153.41,0.0002499,2]
[345611274,1734381040839,-153.41,0.0002499,2]
[345611275,1734381040849,-153.41,0.0002499,2]
[345611276,1734381040859,-153.41,0.0002499,2]
[345611277,1734381040869,-153.41,0.0002499,2]
[345611278,1734381040879,-153.41,0.0002499,2]
[345611279,1734381040889,-153.41,0.0002499,2]
[345611280,1734381040899,-153.41,0.0002499,2]
[345611281,1734381040909,-153.41,0.0002499,2]
[345611282,1734381040918,-153.41,0.0002499,2]
[345611283,1734381040928,-153.41,0.0002499,2]
[345611284,1734381040938,-153.41,0.0002499,2]
[345611285,1734381040947,-153.41,0.0002499,2]
[345611286,1734381040957,-153.41,0.0002499,2]
[345611287,1734381040967,-500.0,0.00024996,4]
[345611288,1734381040976,-152.44915,0.00024996,4]
[345611289,1734381040986,-158.729549,0.00024996,4]
[345611290,1734381040995,-500.0,0.00024996,4]
[345611291,1734381041005,-500.0,0.00024996,4]
[345611292,1734381041015,-1636.23,0.00024996,4]
[345611293,1734381041024,-500.0,0.00024996,4]
[345611294,1734381041033,-562.02,0.00024996,4]
[345611295,1734381041046,-500.0,0.00024996,4]
[345611296,1734381041056,-500.0,0.00024996,4]
[345611297,1734381041066,-500.0,0.00024996,4]
[345611298,1734381041075,-607.74,0.00024997,4]
[345611299,1734381041085,-500.0,0.00024997,4]
[345611300,1734381041095,-543.11,0.00024997,4]
[345611301,1734381041105,-500.0,0.00024997,4]
[345611302,1734381041115,-500.0,0.00024997,4]
[345611303,1734381041124,-500.0,0.00024997,4]
[345611304,1734381041134,-500.0,0.00024997,4]
[345611305,1734381041144,-500.0,0.00024997,4]
[345611306,1734381041155,-202.35,0.00024997,4]
[345611307,1734381041165,-624.37,0.00024997,4]
[345611308,1734381041376,-500.0,0.00024997,4]
[345611309,1734381041386,-500.0,0.00024998,4]
[345611310,1734381041396,-504.32477113,0.00024998,4]
[345611311,1734381041405,-500.0,0.00024998,4]
[345611312,1734381041415,-500.0,0.00024998,4]
[345611313,1734381041424,-500.0,0.00024998,4]
[345611314,1734381041434,-500.0,0.00024998,4]
[345611315,1734381041444,-649.37699846,0.00024998,4]
[345611316,1734381041454,-1636.23,0.00024998,4]
[345611317,1734381041463,-543.11,0.00024998,4]
[345611318,1734381041473,-735.74,0.00024998,4]
[345611319,1734381041483,-556.62,0.00024998,4]
[345611320,1734381041492,-1750.54,0.00024998,4]
[345611321,1734381041501,-500.0,0.00024998,4]
[345611322,1734381041511,-500.0,0.00024998,4]
[345611323,1734381041520,-4260.19,0.00024998,4]
[345611324,1734381041531,-500.0,0.00024998,4]
[345611325,1734381041540,-500.0,0.00024998,4]
[345611326,1734381041549,-500.0,0.00024998,4]
[345611327,1734381041559,-500.0,0.00024998,4]
[345611328,1734381041568,-1216.3,0.00024998,4]
[345611329,1734381041577,-591.78,0.00024998,4]
[345611330,1734381041587,-521.62,0.00024998,4]
[345611331,1734381041597,-562.02,0.00024998,4]
[345611332,1734381041606,-624.37,0.00024998,4]
[345611333,1734381041619,-500.0,0.00024998,4]
[345611334,1734381041630,-500.0,0.00024998,4]
[345611335,1734381041639,-500.0,0.00024998,4]
[345611336,1734381041648,-300.0,0.00024999,10]
[345611337,1734381041659,-300.0,0.00024999,10]
[345611338,1734381041669,-1000.0,0.00024999,2]
[345611339,1734381041679,-906.3176,0.00024999,2]
[345611340,1734381041689,-150.0,0.00024999,30]
[345611341,1734381041698,-1000.0,0.00024999,2]
[345611342,1734381041707,-500.0,0.00024999,4]
[345611343,1734381041717,-500.0,0.00024999,4]
[345611344,1734381041726,-500.0,0.00024999,4]
[345611345,1734381041735,-500.0,0.00024999,4]
[345611346,1734381041744,-500.0,0.00024999,4]
[345611347,1734381041753,-500.0,0.00024999,4]
[345611348,1734381041762,-500.0,0.00024999,4]
[345611349,1734381041772,-500.0,0.00024999,4]
[345611350,1734381041781,-500.0,0.00024999,4]
[345611351,1734381041791,-500.0,0.00024999,4]
[345611352,1734381041800,-500.0,0.00024999,4]
[345611353,1734381041809,-500.0,0.00024999,4]
[345611354,1734381041819,-500.0,0.00024999,4]
[345611355,1734381041828,-500.0,0.00024999,4]
[345611356,1734381041838,-500.0,0.00024999,4]
[345611357,1734381041847,-500.0,0.00024999,4]
[345611358,1734381041856,-500.0,0.00024999,4]
[345611359,1734381041865,-286.00918173,0.00024999,4]
[345611360,1734381041874,-1392.48177632,0.00024999,20]
[345611361,1734381041884,-912.2,0.00024999,2]
[345611362,1734381041893,-500.0,0.00024999,4]
[345611363,1734381041902,-500.0,0.00024999,4]
[345611364,1734381041911,-500.0,0.00024999,4]
[345611365,1734381041920,-152.44915,0.00024999,4]
[345611366,1734381041930,-152.44915,0.00024999,4]
[345611367,1734381041939,-158.729549,0.00024999,4]
[345611368,1734381041948,-152.44915,0.00024999,4]
[345611369,1734381041958,-152.44915,0.00024999,4]